Cogmind - Beta 10.2 @@@ ROGUE MODE // 2021.06.07 @ 04:39:42 Player: the cat Result: Destroyed by S-43 Plague with Heavy Machine Gun Performance ------------- Evolutions (8) 4000 Regions Visited (13) 2600 Robots Destroyed (96) 480 Value Destroyed (2751) 2751 Prototype IDs (21) 420 Alien Tech Used (0) 0 Bonus (60) 60 TOTAL SCORE: 10311 Bonus ------- High Alert Combat Kills 160 Follower Combat Kills 7 Friendly Fire -107 Cogmind --------- Core Integrity 0/1450 Matter 81/300 Energy 79/100 System Corruption 2% Temperature Cool (18) Movement Core (50) Location -2/Research Parts ------- > --- POWER (2) -------- (None) > --- PROPULSION (6) --- (None) > --- UTILITY (13) ----- Advanced Terrain Scan Processor > --- WEAPON (2) ------- (None) > --- INVENTORY (4) ---- Spear Peak State ------------ > --- POWER ------------ Micro Fission Core > --- PROPULSION ------- Nuclear Pulse Array Nuclear Pulse Array > --- UTILITY ---------- Medium Storage Unit Gravity Neutralizing Apparatus Enhanced Optical Array Improved Signal Interpreter Advanced Signal Interpreter Improved Melee Analysis Suite Hacking Suite Advanced Hacking Suite System Shield > --- WEAPON ----------- Spear > --- INVENTORY -------- Nuclear Pulse Array Nuclear Pulse Array Energy Well System Backup Module Grenade Launcher [Rating: 69] Favorites ----------- Power Heavy Ion Engine Engine Heavy Ion Engine Power Core Micro Nuclear Core Reactor Antimatter Reactor Propulsion Light Treads Treads Light Treads Wheel Compact Wheel Flight Unit Cesium-ion Thruster Utility Large Storage Unit Device Advanced Sensor Array Storage Large Storage Unit Processor Improved Signal Interpreter Hackware Hacking Suite Protection Hardened Medium Armor Plating Weapon Light Assault Rifle Energy Gun EM Pulse Gun Energy Cannon Ion Cannon Ballistic Gun Light Assault Rifle Launcher Grenade Launcher Special Weapon Plasma Cutter Slashing Weapon Katana Piercing Weapon Spear Special Melee Weapon Improved Datajack Build | -11 -10 -10 -10 -9 -8 -7 -6 -6 -6 -5 -4 -3 -2 ------- Run | Scr Mat Min Exi Min Mat Fac Fac Was Fac Fac Fac Res Res Slots Evolved 16 | . . . . . 4 2 2 . . 2 2 2 2 Power 1 | . . . . . . . . . . . . 1 . Propulsion 4 | . . . . . 1 . 1 . . . . . 2 Utility 11 | . . . . . 3 2 1 . . 2 2 1 . Weapon . | . . . . . . . . . . . . . . Parts Attached 149 | 6 15 . 1 6 26 36 4 . 1 16 11 13 14 Power 14 | 1 2 . 1 . 3 3 . . . 1 . 2 1 Engine 7 | 1 2 . 1 . 3 . . . . . . . . Core 4 | . . . . . . 3 . . . 1 . . . Reactor 3 | . . . . . . . . . . . . 2 1 Propulsion 37 | 2 4 . . 1 9 8 . . . 2 4 3 4 Treads 13 | 1 2 . . 1 9 . . . . . . . . Leg . | . . . . . . . . . . . . . . Wheel 3 | 1 2 . . . . . . . . . . . . Hover . | . . . . . . . . . . . . . . Flight 21 | . . . . . . 8 . . . 2 4 3 4 Utility 55 | 1 5 . . . 6 14 3 . 1 10 4 5 6 Device 17 | . . . . . . 5 2 . . 5 3 1 1 Storage 14 | 1 4 . . . 3 1 . . . 1 . 3 1 Processor 10 | . . . . . 1 3 1 . . 2 . . 3 Hackware 9 | . . . . . . 4 . . 1 2 1 1 . Protection 5 | . 1 . . . 2 1 . . . . . . 1 Artifact . | . . . . . . . . . . . . . . Weapon 43 | 2 4 . . 5 8 11 1 . . 3 3 3 3 Energy Gun 6 | 1 1 . . . 2 . . . . . . 2 . Energy Cannon 3 | . . . . . . 2 . . . . . 1 . Ballistic Gun 12 | 1 3 . . 4 4 . . . . . . . . Ballistic Cannon . | . . . . . . . . . . . . . . Launcher 3 | . . . . 1 . . . . . . 1 . 1 Special Weapon 3 | . . . . . 1 2 . . . . . . . Impact Weapon . | . . . . . . . . . . . . . . Slashing Weapon 8 | . . . . . 1 7 . . . . . . . Piercing Weapon 7 | . . . . . . . 1 . . 2 2 . 2 Special Melee Weapon 1 | . . . . . . . . . . 1 . . . Unidentified Prototypes 5 | . . . . . . 1 . . . 1 1 1 1 Parts Lost 54 | . 7 . . 2 8 2 . . 3 2 12 9 9 Power 8 | . 2 . . . 2 . . . 1 . 1 1 1 Propulsion 22 | . 1 . . 1 5 2 . . 2 . 4 3 4 Utility 14 | . . . . . . . . . . 2 6 3 3 Weapon 10 | . 4 . . 1 1 . . . . . 1 2 1 Highest Loss Streak 8 | . 3 . . 1 2 2 . . 2 1 5 7 8 Average Slot Usage (%) 82 | . 94 100 100 99 95 82 61 66 61 47 53 19 15 Engine 7 | . 12 14 14 14 8 . . . . . . . . Core 1 | . . . . . . 7 6 6 2 2 3 . . Treads 13 | . 14 14 14 26 25 . . . . . . . . Wheel 3 | . 10 14 14 1 . . . . . . . . . Flight 4 | . . . . . . 22 13 13 9 5 6 1 5 Device 1 | . . . . . . 7 . . . 2 3 . . Storage 21 | . 26 28 28 28 35 7 6 6 4 2 3 . 3 Processor 4 | . . . . . . 12 7 13 13 18 17 8 2 Hackware 4 | . . . . . . 16 26 26 31 9 11 7 . Protection 2 | . . . . . 6 . . . . . . . . Energy Gun 1 | . 8 . . . 2 . . . . . . . . Ballistic Gun 12 | . 18 28 28 27 13 . . . . . . . . Slashing Weapon 1 | . . . . . . 6 . . . . . . . Naked Turns 34 | . . . . . . . . . . . . . 34 Heaviest Build 104 | 12 40 37 38 40 104 49 14 14 14 16 19 12 24 Greatest Support 69 | 20 40 16 16 46 69 20 14 14 14 52 40 14 49 Greatest Overweight (x) 3 | . 2 2 2 2 2 3 . . 1 . . 3 1 Average Overweight (x) . | . 1 2 2 . . . . . . . . . . Largest Inventory Capacity 34 | 6 16 16 16 16 30 34 8 8 8 8 8 4 4 Average Capacity 16 | 5 13 16 16 16 29 8 8 8 6 5 6 4 4 Most Carried 30 | 5 16 16 16 16 30 30 8 8 8 7 7 4 4 Average Carried 14 | 2 8 16 15 15 26 8 7 8 6 5 4 3 3 Final Capacity 30 | 6 16 16 16 16 30 8 8 8 4 8 4 4 4 Final Carried 30 | 4 16 16 16 15 30 8 8 8 4 7 4 4 1 Class Distribution -------------------- 32% | Mutant 29% | Hauler-Mutant 11% | Scavenger-Mutant 11% | Hacker-Mutant 7% | Hacker-Scout 3% | Hacker-Sprinter Dominant Class ---------------- Mutant | -10/Materials Scavenger-Mutant | -10/Mines Mutant | -10/Exiles Mutant | -9/Mines Hauler-Mutant | -8/Materials Hacker-Scout | -7/Factory Hacker-Mutant | -6/Factory Hacker-Mutant | -6/Waste Hacker-Mutant | -6/Factory Mutant | -5/Factory Hacker-Mutant | -4/Factory Hacker-Mutant | -3/Research Mutant | -2/Research Resources | -11 -10 -10 -10 -9 -8 -7 -6 -6 -6 -5 -4 -3 -2 ----------- Run | Scr Mat Min Exi Min Mat Fac Fac Was Fac Fac Fac Res Res Matter Collected 2438 | 191 601 17 13 123 743 225 . . . 246 163 116 . Remotely . | . . . . . . . . . . . . . . Salvage Created 3720 | . 865 . 58 142 1772 196 . . . 246 149 103 189 Parts 220 | . 45 . 6 11 109 17 . . . 12 8 7 5 Haulers Intercepted 9 | . 2 . . . 5 2 . . . . . . . Recyclers Shooed 1 | . 1 . . . . . . . . . . . . Parts Field Recycled . | . . . . . . . . . . . . . . Retrieved Matter . | . . . . . . . . . . . . . . Parts Self-Destructed . | . . . . . . . . . . . . . . Prevented . | . . . . . . . . . . . . . . Kills | -11 -10 -10 -10 -9 -8 -7 -6 -6 -6 -5 -4 -3 -2 ------- Run | Scr Mat Min Exi Min Mat Fac Fac Was Fac Fac Fac Res Res Combat Hostiles Destroyed 71 | . 12 . . 13 29 1 . . . . 5 4 7 Melee 1 | . . . . . . . . . . . 1 . . Guns 49 | . 10 . . 10 29 . . . . . . . . Cannons 2 | . . . . . . 1 . . . . . 1 . AOE 19 | . 2 . . 3 . . . . . . 4 3 7 Classes Destroyed 14 | . 7 . . 1 4 1 . . . 1 . . . Worker 6 | . 1 . . . 2 . . . . 2 1 . . Hauler 9 | . 2 . . . 5 2 . . . . . . . Recycler 5 | . 3 . . . 1 . . . . 1 . . . Mechanic 2 | . . . . . . . . . . 1 1 . . Operator 5 | . 1 . . . 2 . . . . 2 . . . Watcher 4 | . 1 . . . 1 2 . . . . . . . Swarmer 27 | . 3 . . 7 4 . . . . . 4 4 5 Grunt 21 | . 9 . . . 10 . . . . . . . 2 Brawler 1 | . . . . . 1 . . . . . . . . Duelist 1 | . . . . . 1 . . . . . . . . Sentry 10 | . . . . . 10 . . . . . . . . Hunter 3 | . . . . . 3 . . . . . . . . Programmer 2 | . . . . . . 1 . . . . 1 . . Assembled 6 | . . . . 6 . . . . . . . . . Best Kill Streak 7 | . 6 . . 6 6 1 . . . 2 5 3 7 Combat Bots Only 7 | . 3 . . 6 6 1 . . . . 4 3 7 Max Kills in Single Turn 6 | . 2 . . 2 2 1 . . . 1 2 3 6 Gunslinging . | . . . . . . . . . . . . . . Exploded 6 | . 1 . . 2 . . . . . . 2 3 6 Melee 1 | . . . . . . . . . . . 1 . . Uniques/NPCs Destroyed . | . . . . . . . . . . . . . . Combat | -11 -10 -10 -10 -9 -8 -7 -6 -6 -6 -5 -4 -3 -2 -------- Run | Scr Mat Min Exi Min Mat Fac Fac Was Fac Fac Fac Res Res Damage Taken 9833 | . 749 . . 593 2101 426 . . 379 157 1469 1596 2363 Core 4456 | . 62 . . 151 270 229 . . 288 136 684 1179 1457 Absorbed by Shields 54 | . . . . . . . . . . . . 54 . Core Remaining (%) 54 | 100 . . . 14 50 67 . . 66 86 40 9 . Volleys Fired 235 | . 70 . 5 20 119 7 . . . . 5 6 3 Largest 2 | . 2 . 2 2 2 1 . . . . 1 1 1 Hottest 113 | . 80 . 40 40 86 65 . . . . 30 113 60 Shots Fired 429 | . 133 . 10 36 229 7 . . . . 5 6 3 Gun 401 | . 133 . 10 33 222 . . . . . . 3 . Cannon 10 | . . . . . . 7 . . . . . 3 . Launcher 11 | . . . . 3 . . . . . . 5 . 3 Special 7 | . . . . . 7 . . . . . . . . Kinetic 313 | . 86 . 10 33 184 . . . . . . . . Thermal 55 | . . . . . 45 7 . . . . . 3 . Explosive 11 | . . . . 3 . . . . . . 5 . 3 Electromagnetic 50 | . 47 . . . . . . . . . . 3 . Robot Hit Streak 21 | . 15 . 5 7 21 21 . . . . 1 2 5 Robot Miss Streak 4 | . 3 . 1 2 2 1 . . . . 2 4 . Penetration Max . | . . . . . . . . . . . . . . Secondary Targets 6 | . 3 . . 3 . . . . . . . . . Max Gunslinging Chain 1 | . 1 . . 1 . . . . . . . . . Shots Hit Robots 330 | . 84 . 7 21 181 16 1 . . 10 4 3 3 Core Hits 184 | . 38 . 4 26 78 6 . . . 7 10 5 10 Critical Hits 5 | . 1 . . . 4 . . . . . . . . Critical Kills 1 | . . . . . 1 . . . . . . . . Critical Parts Destroyed 3 | . 1 . . . 2 . . . . . . . . Melee Attacks 134 | . . . . . . 82 1 . . 29 13 . 9 Impact . | . . . . . . . . . . . . . . Slashing 82 | . . . . . . 82 . . . . . . . Piercing 52 | . . . . . . . 1 . . 29 13 . 9 Sneak Attacks 14 | . . . . . . 5 1 . . 7 1 . . Combat Hostiles . | . . . . . . . . . . . . . . Follow-up Attacks . | . . . . . . . . . . . . . . Damage Inflicted 8044 | . 944 . 64 554 2615 858 105 . . 820 518 384 1182 Guns 3654 | . 825 . 64 172 2574 . . . . . . 19 . Cannons 192 | . . . . . . 115 . . . . . 77 . Explosions 2290 | . 119 . . 382 . . . . . . 346 284 1159 Melee 1840 | . . . . . . 743 105 . . 820 172 . . Ramming 27 | . . . . . . . . . . . . 4 23 Kinetic 2829 | . 452 . 64 172 2141 . . . . . . . . Thermal 1069 | . 119 . . . 474 115 . . . . . 361 . Explosive 1887 | . . . . 382 . . . . . . 346 . 1159 Electromagnetic 392 | . 373 . . . . . . . . . . 19 . Impact . | . . . . . . . . . . . . . . Slashing 743 | . . . . . . 743 . . . . . . . Piercing 1097 | . . . . . . . 105 . . 820 172 . . Highest Corruption 4 | . 1 1 1 1 1 3 4 4 4 . 2 . 2 Average Corruption 1 | . 1 1 1 1 1 2 4 4 4 . 2 . 1 Corruption Purged . | . . . . . . . . . . . . . . Effects 46 | . 6 . 2 2 5 18 2 2 3 . 6 . . Message Errors 16 | . 3 . 1 1 2 5 . 2 . . 2 . . Matter Fused 8 | . . . . . . 6 . . 2 . . . . Heat Flow Errors 2 | . . . . . . 1 . . . . 1 . . Energy Discharges 6 | . 1 . . . . 1 1 . 1 . 2 . . Data Loss (minor) 8 | . 1 . 1 . 2 2 1 . . . 1 . . Targeting Errors 6 | . 1 . . 1 1 3 . . . . . . . Overload Shots . | . . . . . . . . . . . . . . Overflow Damage 490 | . . . . 31 . 173 . . . 116 47 16 107 Projectiles . | . . . . . . . . . . . . . . Explosions 154 | . . . . 31 . . . . . . . 16 107 Melee 336 | . . . . . . 173 . . . 116 47 . . Knockbacks . | . . . . . . . . . . . . . . Impact . | . . . . . . . . . . . . . . Kinetic . | . . . . . . . . . . . . . . Secondary . | . . . . . . . . . . . . . . Self-Inflicted Damage 190 | . 37 . . 21 . . . . . . 22 60 50 Shots 5 | . 1 . . 1 . . . . . . 1 1 1 Rammed 3 | . . . . . . . . . . . . 1 2 Targets Rammed 3 | . . . . . . . . . . . . 1 2 Kicked . | . . . . . . . . . . . . . . Crushed . | . . . . . . . . . . . . . . Highest Temperature 188 | . 180 . . 44 45 188 . . . . 166 5 8 Average Temperature 28 | . 44 . . 7 9 51 . . . . 101 5 8 Received Heat Transfer 1549 | . 300 . . 100 549 33 . . . 57 156 147 207 Siege Activations . | . . . . . . . . . . . . . . Robots Corrupted . | . . . . . . . . . . . . . . Combat Hostiles . | . . . . . . . . . . . . . . Parts Fried . | . . . . . . . . . . . . . . Impact Corruptions . | . . . . . . . . . . . . . . Robots Melted . | . . . . . . . . . . . . . . Combat Hostiles . | . . . . . . . . . . . . . . Parts Melted 3 | . . . . . 3 . . . . . . . . Heat Transferred 1627 | . 50 . . . 1105 148 . . . . . 324 . Parts Sabotaged . | . . . . . . . . . . . . . . Parts Stolen . | . . . . . . . . . . . . . . Parts Stripped . | . . . . . . . . . . . . . . Power Chain Reactions 3 | . 2 . . . . . . . . . . 1 . Missiles Intercepted . | . . . . . . . . . . . . . . Alert | -11 -10 -10 -10 -9 -8 -7 -6 -6 -6 -5 -4 -3 -2 ------- Run | Scr Mat Min Exi Min Mat Fac Fac Was Fac Fac Fac Res Res Peak Influence 960 | . 205 33 . 139 432 332 172 90 150 588 960 749 827 Initial 504 | . . 33 . . . 148 153 60 59 73 287 504 409 Average 214 | . 82 33 . 68 214 166 158 80 90 309 451 597 576 Maximum Alert Level 3 | . 1 . . . 2 1 . . . 2 3 3 3 Low Security (%) 57 | 100 99 100 . 100 42 62 100 100 100 26 31 . . Level 1 28 | . . . . . 56 37 . . . 43 13 . . Level 2 10 | . . . . . 1 . . . . 30 30 72 79 Level 3 3 | . . . . . . . . . . . 24 27 20 Level 4 . | . . . . . . . . . . . . . . Level 5 . | . . . . . . . . . . . . . . High Security . | . . . . . . . . . . . . . . Max Security . | . . . . . . . . . . . . . . Squads Dispatched 31 | . 2 . . . 5 2 1 . 3 4 5 4 5 Investigation 11 | . 1 . . . . 1 . . . 3 3 3 . Extermination 3 | . . . . . . . . . . . 1 1 1 Reinforcement 14 | . 1 . . . 2 1 1 . 3 1 1 . 4 Assault . | . . . . . . . . . . . . . . Garrison 3 | . . . . . 3 . . . . . . . . Intercept . | . . . . . . . . . . . . . . Construction Impeded . | . . . . . . . . . . . . . . Haulers Reinforced 2 | . . . . . . 1 1 . . . . . . Stealth | -11 -10 -10 -10 -9 -8 -7 -6 -6 -6 -5 -4 -3 -2 --------- Run | Scr Mat Min Exi Min Mat Fac Fac Was Fac Fac Fac Res Res Distress Signals 17 | . . . . . 7 3 . . . 1 2 . 4 Communications Jammed . | . . . . . . . . . . . . . . Distress Signals . | . . . . . . . . . . . . . . Times Spotted 333 | . 24 . . 16 67 39 . 6 10 32 60 19 60 Peak Tracking Total 37 | . 4 . . 9 9 11 . 6 6 9 17 11 37 Tactical Retreats 45 | . 2 . . 1 1 11 . . 2 8 12 4 4 Traps | -11 -10 -10 -10 -9 -8 -7 -6 -6 -6 -5 -4 -3 -2 ------- Run | Scr Mat Min Exi Min Mat Fac Fac Was Fac Fac Fac Res Res Traps Triggered 18 | . 2 . . . 1 6 2 . . 2 1 2 2 Indirectly . | . . . . . . . . . . . . . . Trap Hack Attempts . | . . . . . . . . . . . . . . Triggered . | . . . . . . . . . . . . . . Disarmed . | . . . . . . . . . . . . . . Reprogrammed 5 | . . . . . . . . . . . 5 . . Reused 4 | . . . . . . . . . . . 4 . . Traps Extracted . | . . . . . . . . . . . . . . Installed . | . . . . . . . . . . . . . . Triggered 5 | . . . . 1 . . . . . . 4 . . Machines | -11 -10 -10 -10 -9 -8 -7 -6 -6 -6 -5 -4 -3 -2 ---------- Run | Scr Mat Min Exi Min Mat Fac Fac Was Fac Fac Fac Res Res Machines Disabled 6 | . . . . . 1 2 . . . . 1 . 2 Max in Single Turn 1 | . . . . . 1 1 . . . . 1 . 1 Garrison Access 4 | . . . . . 1 2 . . . 1 . . . Machines Sabotaged . | . . . . . . . . . . . . . . Garrisons Compromised . | . . . . . . . . . . . . . . Overloaded Fab Kills . | . . . . . . . . . . . . . . Fab Network Shutdowns 1 | . . . . . . . . . . . 1 . . Hacking | -11 -10 -10 -10 -9 -8 -7 -6 -6 -6 -5 -4 -3 -2 --------- Run | Scr Mat Min Exi Min Mat Fac Fac Was Fac Fac Fac Res Res Machines Accessed 67 | . 6 . 2 . 9 20 1 . 2 10 10 5 2 Terminals 50 | . 6 . . . 8 13 1 . 2 8 7 4 1 Fabricators 8 | . . . . . . 3 . . . 1 3 1 . Repair Stations . | . . . . . . . . . . . . . . Recycling Units 2 | . . . . . . 1 . . . . . . 1 Scanalyzers 1 | . . . . . . 1 . . . . . . . Garrison Access 4 | . . . . . 1 2 . . . 1 . . . Total Hacks 268 | . 20 . 10 . 34 70 5 . 10 23 77 15 4 Successful 155 | . 7 . 10 . 20 39 4 . 7 6 54 6 2 Failed 113 | . 13 . . . 14 31 1 . 3 17 23 9 2 Catastrophic 17 | . 1 . . . 2 2 . . . 7 2 3 . Database Lockouts . | . . . . . . . . . . . . . . Manual 183 | . 15 . . . 26 42 3 . 8 16 59 11 3 Terminals 221 | . 20 . . . 33 56 5 . 10 18 66 12 1 Fabricators 24 | . . . . . . 7 . . . 3 11 3 . Repair Stations . | . . . . . . . . . . . . . . Recycling Units 5 | . . . . . . 2 . . . . . . 3 Scanalyzers 2 | . . . . . . 2 . . . . . . . Garrison Access 6 | . . . . . 1 3 . . . 2 . . . Terminal Hacks 94 | . 5 . 10 . 14 21 3 . 5 2 32 2 . Record 10 | . . . 10 . . . . . . . . . . Part Schematic 12 | . . . . . . 3 . . . . 9 . . Robot Analysis 9 | . 2 . . . 3 3 . . . . 1 . . Prototype ID Bank 4 | . 1 . . . . 1 1 . . . 1 . . Level Access Points 3 | . . . . . . . . . 1 . 2 . . Branch Access Points 1 | . . . . . 1 . . . . . . . . Terminal Index 7 | . 1 . . . 1 1 1 . 1 1 1 . . Fabricator Index 5 | . . . . . . 2 . . 1 . 1 1 . Scanalyzer Index 1 | . . . . . 1 . . . . . . . . Alert Level 4 | . . . . . . 2 . . . . 2 . . Unreport Threat 7 | . . . . . 1 2 . . . . 4 . . Locate Traps 6 | . . . . . 1 2 . . 1 . 2 . . Reprogram Traps 1 | . . . . . . . . . . . 1 . . Recall Investigation 2 | . . . . . . . . . . . 2 . . Recall Extermination 2 | . . . . . . . . . . . 1 1 . Hauler Manifests 3 | . . . . . 2 1 . . . . . . . Registered Components 4 | . . . . . 1 . 1 . 1 . 1 . . Registered Prototypes 2 | . . . . . . 1 . . . . 1 . . Zone Layout 11 | . 1 . . . 3 3 . . . 1 3 . . Fabricator Hacks 13 | . . . . . . 4 . . . 1 7 1 . Network Status 1 | . . . . . . . . . . . 1 . . Load Schematic 7 | . . . . . . 2 . . . 1 3 1 . Build 5 | . . . . . . 2 . . . . 3 . . Repair Station Hacks . | . . . . . . . . . . . . . . Recycling Unit Hacks 2 | . . . . . . 1 . . . . . . 1 Report Inventory 2 | . . . . . . 1 . . . . . . 1 Scanalyzer 2 | . . . . . . 2 . . . . . . . Insert Component 1 | . . . . . . 1 . . . . . . . Analyze 1 | . . . . . . 1 . . . . . . . Garrison Access Hacks 4 | . . . . . 1 2 . . . 1 . . . Seal Access 4 | . . . . . 1 2 . . . 1 . . . Unauthorized Hacks 40 | . 2 . . . 5 9 1 . 2 2 15 3 1 Terminals 36 | . 2 . . . 5 8 1 . 2 2 13 3 . Track 15 | . . . . . 2 4 . . 1 . 6 2 . Assimilate 4 | . . . . . . 2 . . . 1 1 . . Botnet 13 | . 2 . . . 2 2 1 . 1 1 3 1 . Disrupt 3 | . . . . . . . . . . . 3 . . Operators 1 | . . . . . 1 . . . . . . . . Fabricators 2 | . . . . . . . . . . . 2 . . Report 1 | . . . . . . . . . . . 1 . . Siphon 1 | . . . . . . . . . . . 1 . . Repair Stations . | . . . . . . . . . . . . . . Recycling Units 2 | . . . . . . 1 . . . . . . 1 Recyclers 2 | . . . . . . 1 . . . . . . 1 Scanalyzers . | . . . . . . . . . . . . . . Garrison Access . | . . . . . . . . . . . . . . Data Cores Recovered . | . . . . . . . . . . . . . . Used . | . . . . . . . . . . . . . . Hacking Detections 59 | . 6 . . . 8 17 1 . 1 10 10 5 1 Full Trace Events 9 | . . . . . . 1 . . . 3 3 2 . Feedback Events 1 | . . . . . . . . . . 1 . . . Hackware Fried 1 | . . . . . . . . . . 1 . . . Feedback Blocked . | . . . . . . . . . . . . . . Robot Schematics Acquired . | . . . . . . . . . . . . . . Robots Built . | . . . . . . . . . . . . . . Matter . | . . . . . . . . . . . . . . Time . | . . . . . . . . . . . . . . Total Robot Build Rating . | . . . . . . . . . . . . . . Part Schematics Acquired 13 | . . . . . . 4 . . . . 9 . . Parts Built 5 | . . . . . . 3 . . . . 2 . . Matter 1096 | . . . . . . 314 . . . . 782 . . Time 378 | . . . . . . 120 . . . . 258 . . Total Part Build Rating 22 | . . . . . . 11 . . . . 11 . . Parts Repaired . | . . . . . . . . . . . . . . Time . | . . . . . . . . . . . . . . Parts Recycled . | . . . . . . . . . . . . . . Recycled Matter . | . . . . . . . . . . . . . . Retrieved Matter . | . . . . . . . . . . . . . . Retrieved Components . | . . . . . . . . . . . . . . Parts Scanalyzed 1 | . . . . . . 1 . . . . . . . Part Schematics Acquired 1 | . . . . . . 1 . . . . . . . Parts Damaged . | . . . . . . . . . . . . . . Bothacking | -11 -10 -10 -10 -9 -8 -7 -6 -6 -6 -5 -4 -3 -2 ------------ Run | Scr Mat Min Exi Min Mat Fac Fac Was Fac Fac Fac Res Res Used RIF Installer . | . . . . . . . . . . . . . . Robots Hacked . | . . . . . . . . . . . . . . Non-combat . | . . . . . . . . . . . . . . Combat . | . . . . . . . . . . . . . . Robot Hacks Applied . | . . . . . . . . . . . . . . Relay Couplers Released . | . . . . . . . . . . . . . . Robots Rewired 3 | . . . 3 . . . . . . . . . . Allies Hacked . | . . . . . . . . . . . . . . Hacks Repelled . | . . . . . . . . . . . . . . Allies | -11 -10 -10 -10 -9 -8 -7 -6 -6 -6 -5 -4 -3 -2 -------- Run | Scr Mat Min Exi Min Mat Fac Fac Was Fac Fac Fac Res Res Total Allies 7 | . . . 3 . . 1 . 1 . 1 1 . . Largest Group 3 | . . . 3 3 . 1 . 1 . . 1 . . Highest-Rated Group 31 | . . . 24 24 . 26 . 31 . . 10 . . Highest-Rated Ally 31 | . . . 8 8 . 26 . 31 . . 10 . . Total Orders 1 | . . . . . . . . . . . 1 . . STAY 1 | . . . . . . . . . . . 1 . . Ally Attacks 18 | . . . . 11 . . . 7 . . . . . Total Damage 205 | . . . . 77 . . . 128 . . . . . Kills 2 | . . . . 2 . . . . . . . . . Allies Corrupted . | . . . . . . . . . . . . . . Allies Melted . | . . . . . . . . . . . . . . Intel | -11 -10 -10 -10 -9 -8 -7 -6 -6 -6 -5 -4 -3 -2 ------- Run | Scr Mat Min Exi Min Mat Fac Fac Was Fac Fac Fac Res Res Robot Analysis Total 9 | . 2 . . . 3 3 . . . . 1 . . Derelict Logs Recovered 2 | . . . . 2 . . . . . . . . . Drone Launches . | . . . . . . . . . . . . . . Drone Recoveries . | . . . . . . . . . . . . . . Exploration | -11 -10 -10 -10 -9 -8 -7 -6 -6 -6 -5 -4 -3 -2 ------------- Run | Scr Mat Min Exi Min Mat Fac Fac Was Fac Fac Fac Res Res Turns Passed 8431 | 62 1116 359 896 401 2531 1328 91 73 112 386 455 276 345 Spaces Moved 8983 | 48 701 297 691 217 1136 2604 237 215 283 590 909 489 566 Core 1132 | 1 . . . . . . . . 59 325 204 354 189 Treads 1444 | 2 109 . . 197 1136 . . . . . . . . Legs . | . . . . . . . . . . . . . . Wheels 1645 | 45 592 297 691 20 . . . . . . . . . Hover . | . . . . . . . . . . . . . . Flight 4762 | . . . . . . 2604 237 215 224 265 705 135 377 Fastest Speed 32 | 50 100 120 120 120 160 32 34 34 34 37 37 37 34 Average Speed 75 | 101 123 120 120 156 179 32 34 34 37 44 40 47 51 Slowest Speed 274 | 160 180 120 120 180 200 274 34 34 120 50 50 200 100 Overloaded Moves . | . . . . . . . . . . . . . . Propulsion Burnouts . | . . . . . . . . . . . . . . Robots Hopped 22 | . . . . . . 12 . . . . 4 1 5 Cave-ins Triggered . | . . . . . . . . . . . . . . Exploration Rate (%) 47 | 4 97 41 92 74 93 54 10 86 13 26 32 23 23 Regions Visited 13 Branch Regions 3 Pre-discovered Areas 3 | . . 1 1 1 . . . . . . . . . Known Exits Taken 4 | . . . . . . 1 . . 1 1 1 . . Unknown Exits Taken 7 | 1 1 1 1 1 1 . . . . . . 1 . Scrap Searched 1 | . . 1 . . . . . . . . . . . Spaces Dug 96 | . . . . . . 61 . . . 19 10 . 6 Terrain Destroyed 153 | . 11 . . 21 . 63 . . . 19 26 7 6 Melee 96 | . . . . . . 61 . . . 19 10 . 6 Projectile 3 | . . . . . . 2 . . . . . 1 . AOE 54 | . 11 . . 21 . . . . . . 16 6 . Terrain Rammed . | . . . . . . . . . . . . . . Walls Destroyed . | . . . . . . . . . . . . . . Machines Disabled . | . . . . . . . . . . . . . . Actions | -11 -10 -10 -10 -9 -8 -7 -6 -6 -6 -5 -4 -3 -2 --------- Run | Scr Mat Min Exi Min Mat Fac Fac Was Fac Fac Fac Res Res Total 10040 | 58 842 299 750 249 1390 2949 247 214 290 667 968 522 595 Wait 282 | . 13 3 . 2 68 148 . . 1 24 20 3 . Move 8930 | 47 700 296 690 216 1135 2581 237 214 282 589 901 486 556 Hop 19 | . . . . . . 10 . . . . 3 1 5 Pick Up 83 | 5 28 . 1 2 28 4 1 . 1 5 4 2 2 Fast Attach 69 | 5 5 . 1 2 10 17 1 . . 10 3 8 7 Attach 63 | 1 7 . . 2 10 14 3 . 1 5 8 5 7 Detach 21 | . . . . . . 6 3 . . 2 4 3 3 Swap 17 | . 3 . . 2 6 5 . . . 1 . . . Drop 88 | . 16 . 2 3 14 39 1 . 5 2 4 1 1 Fire 235 | . 70 . 5 20 119 7 . . . . 5 6 3 Melee 134 | . . . . . . 82 1 . . 29 13 . 9 Ram 3 | . . . . . . . . . . . . 1 2 Kick . | . . . . . . . . . . . . . . Crush . | . . . . . . . . . . . . . . Escape Stasis 45 | . . . . . . 36 . . . . 3 6 . Rewire 51 | . . . 51 . . . . . . . . . . Trap . | . . . . . . . . . . . . . . Miscellaneous . | . . . . . . . . . . . . . . Route ------- -11/Scrapyard -10/Materials (discovered 4 exits: [*Mat x3] / [*Min]) -10/Mines (discovered 2 exits: [*Mat] / *Exi) -10/Exiles (discovered 2 exits: [*Min x2]) -9/Mines -8/Materials (discovered 3 exits: *Fac x3) -7/Factory (discovered 4 exits: *Fac x2 / *Low x2) -6/Factory -6/Waste -6/Factory (discovered 4 exits: *Fac x4) -5/Factory -4/Factory (discovered 5 exits: *Res x4 / [*Upp]) -3/Research -2/Research History --------- Turn | Location | Event 31 | -11/Scrapyard | Discovered new exit (range 16) 63 | -11/Scrapyard | Entered Materials 165 | -10/Materials | Discovered new exit (range 7) 303 | -10/Materials | Build established: Mutant 322 | -10/Materials | Discovered new exit (range 15) 499 | -10/Materials | Lost 3 parts (1n2w) 755 | -10/Materials | Discovered new exit (range 10) 952 | -10/Materials | Discovered new exit (range 14) 1179 | -10/Materials | Entered Mines 1180 | -10/Mines | Learned location of Storage (-9) 1220 | -10/Mines | Met a Derelict bent on vengeance 1313 | -10/Mines | YI-UF0 nonchalantly dropped a Grenade Launcher on the ground 1335 | -10/Mines | Discovered new exit (range 8) 1381 | -10/Mines | Build established: Scavenger-Mutant 1530 | -10/Mines | Deemed a non-threat by the Exiles lab entrance 1532 | -10/Mines | Discovered new exit (range 5) 1538 | -10/Mines | Entered Exiles 1538 | -10/Exiles | Found Exiles lab destroyed 1558 | -10/Exiles | Discovered new exit (range 15) 2189 | -10/Exiles | Build established: Mutant 2201 | -10/Exiles | Discovered new exit (range 10) 2267 | -10/Exiles | Learned location of Zion (-7) 2434 | -10/Exiles | Entered Mines 2434 | -9/Mines | Accompanied by 3 allies 2435 | -9/Mines | Assembled infested the area 2457 | -9/Mines | Learned location of 1 exit from Proximity Caves 2473 | -9/Mines | Core integrity fell below 50% 2756 | -9/Mines | Core integrity fell below 20% 2797 | -9/Mines | Discovered new exit (range 12) 2835 | -9/Mines | Entered Materials 2835 | -8/Materials | Evolved 4 slots: Propulsion x1, Utility x3 3153 | -8/Materials | Build established: Hauler-Mutant 3365 | -8/Materials | Discovered new exit (range 12) 3887 | -8/Materials | Garrison activated, responded to threat 4217 | -8/Materials | Discovered new exit (range 16) 4965 | -8/Materials | Discovered new exit (range 11) 5366 | -8/Materials | Entered Factory 5366 | -7/Factory | Evolved 2 slots: Utility x2 5426 | -7/Factory | Discovered new exit (range 11) 5435 | -7/Factory | Identified exit to Lower Caves 5716 | -7/Factory | Discovered new exit (range 6) 5722 | -7/Factory | Identified exit to Factory 6186 | -7/Factory | Build established: Hacker-Scout 6351 | -7/Factory | Fabricated Hacking Suite (x1) 6456 | -7/Factory | Fabricated System Backup Module? 6542 | -7/Factory | Discovered exit to Factory (range 12) 6590 | -7/Factory | Discovered exit to Lower Caves (range 12) 6694 | -7/Factory | Entered another Factory area 6694 | -6/Factory | Evolved 2 slots: Propulsion x1, Utility x1 6785 | -6/Factory | Sucked down chute 6785 | -6/Factory | Entered Waste 6786 | -6/Waste | Met a frightened Derelict 6788 | -6/Waste | Spotted C-40 Crusher 6799 | -6/Waste | Spotted C-40 Crusher 6799 | -6/Waste | Spotted C-40 Crusher 6799 | -6/Waste | Spotted C-40 Crusher 6811 | -6/Waste | Spotted C-40 Crusher 6836 | -6/Waste | Spotted C-40 Crusher 6846 | -6/Waste | Discovered new exit (range 11) 6858 | -6/Waste | Identified exit to Factory 6858 | -6/Waste | Entered Factory 6934 | -6/Factory | Build established: Hacker-Mutant 6935 | -6/Factory | Identified exit to Factory 6970 | -6/Factory | Entered another Factory area 6970 | -5/Factory | Evolved 2 slots: Utility x2 6980 | -5/Factory | System Shield fried by hacking feedback 7258 | -5/Factory | Discovered new exit (range 14) 7310 | -5/Factory | Identified exit to Factory 7356 | -5/Factory | Entered another Factory area 7356 | -4/Factory | Evolved 2 slots: Utility x2 7370 | -4/Factory | Discovered new exit (range 21) 7436 | -4/Factory | Identified exit to Research 7571 | -4/Factory | Spotted B-86 Titan 7579 | -4/Factory | Fabricated Exp. Sensor Array? 7618 | -4/Factory | Fabricated Adv. Hacking Suite? 7631 | -4/Factory | Lost 5 parts (2n2u1w) 7738 | -4/Factory | Core integrity fell below 50% 7756 | -4/Factory | Local fabrication network quarantined 7811 | -4/Factory | Entered Research 7811 | -3/Research | Evolved 2 slots: Power x1, Utility x1 7981 | -3/Research | Core integrity fell below 50% 8027 | -3/Research | Lost 7 parts (1p2n2u2w) 8051 | -3/Research | Core integrity fell below 20% 8065 | -3/Research | Found Prototype Launcher 8077 | -3/Research | Discovered new exit (range 12) 8087 | -3/Research | Entered another Research area 8087 | -2/Research | Evolved 2 slots: Propulsion x2 8211 | -2/Research | Identified Hellfire Missile Launcher 8235 | -2/Research | Spotted B-90 Cyclops 8238 | -2/Research | Destroyed 7 combat bots 8395 | -2/Research | Core integrity fell below 50% 8396 | -2/Research | Spotted B-90 Cyclops 8424 | -2/Research | Build established: Mutant 8430 | -2/Research | Spotted B-90 Cyclops 8431 | -2/Research | Core integrity fell below 20% 8432 | -2/Research | Destroyed by S-43 Plague with Heavy Machine Gun Last Messages --------------- 08401_ K-01 Serf collects debris. 08403_ Acquired Med. Insulated Plating. 08406_ R-10 Processor collects Nova Cannon. 08406_ Penetrated by Slug. 08408_ ALERT: Hostiles spotted, dispatching reinforcements to Terminal R010. 08409_ P-80 Master resets S-43 Plague, system corruption cleaned. 08413_ Energy Well destroyed. 08418_ Med. Insulated Plating destroyed. 08421_ O-24 Administrator: "IFF HANDSHAKE FAILED. SECURING TERMINAL." 08422_ O-24 Administrator sends out distress signal. 08425_ O-32 Director sends out distress signal. 08425_ O-32 Director: "IFF HANDSHAKE FAILED. SECURING TERMINAL." 08427_ Impulse Thruster Array destroyed. 08428_ ALERT: Hostiles spotted, dispatching reinforcements to Terminal R015. 08429_ ALERT: Hostiles spotted, dispatching reinforcements to Terminal R005. 08430_ O-32 Director: "IFF HANDSHAKE FAILED. SECURING TERMINAL." 08431_ Impulse Thruster Array destroyed. Map ----- +----------------------------------------------------+ | ?????????????????????????????????????????????????? | | ?????????????????????????????????????????????????? | | ???????????????????????????????????????????#??#### | | ???????????????????????????????????????????# | | ???????????????????????????????????????????# | | ???????????????????????????????????????????# "" | | ???????????????????????????????????????????# "" | | ?????????????????????????????????? ????????# "" | | ?????????????????????????????????? ????????# S | | ?????????????????????????????????? ????????# "" | | ?????????????????????????????????? #???????# "" | | ?????????????????????????????????? #???????# "" | | ?????????????????????????????????? #???????# | | ?????????????????????????????????? #???????# | | ??????????????######?????######### #?###########/# | | ?????????????? o ????? #?# | | ????????????? ???? #?# | | ??????????????u ? ^ #?# | | ??????????????"" """""""" #?# R | | ??????????????"" """""""" #?# ######## | | ?????????????""" """""""" #?# # | | | ??????????? """ """""""" ### # | | ??????????? ss s ssss / | | ?????????? g s s g # " | | ?????????? g # | | ?????????? gg @ #? " | | ????????????????# ####? | | ????????????????# #????? | | ????????????????# #?????##/## | | ????????????????# * """"" #??????? #? | | ????????????????# """"" gg#???????? ? | | ??????????????#BB """"" b#????????? | | ??????????????#BB "" "" ????????? | | ??????????????### ""T"" o ??????? | | ????????????????# """ ####??????? | | ????????????????#################### ##?????????? | | ???????????????????????????????????# #??????????? | | ???????????????????????????????????+ +??????????? | | ???????????????????????????????????# ???????????? | | ???????????????????????????????????? ???????????? | | ?????????????????????????????????????????????????? | | ?????????????????????????????????????????????????? | | ?????????????????????????????????????????????????? | | ?????????????????????????????????????????????????? | | ?????????????????????????????????????????????????? | | ?????????????????????????????????????????????????? | | | | | | | | | +----------------------------------------------------+ Best States ------------- Heat Dissipation 75 Energy Generation 21 Energy Capacity 825 Matter Stores 300 Matter Capacity 300 Sight Range 22 Robot Scan Range 30 Terrain Scan Range 20 Terrain Scan Density 210 Armor Coverage 225 Resistance: EM 20 Utility Shielding 33 Melee Speed Boost 20 Evasion (%) 63 Targeting Accuracy 8 Melee Accuracy 6 Recoil Reduction 3 Offensive Hacking 40 Defensive Hacking 12 Item Schematics ----------------- Hacking Suite | -7/Factory | Hacked Imp. Light Armor Plating | -7/Factory | Scanalyzed Imp. Hacking Suite | -7/Factory | Hacked Imp. Cesium-ion Thruster | -7/Factory | Hacked Adv. Sensor Array | -4/Factory | Hacked Adv. Hacking Suite | -4/Factory | Hacked Exp. Cesium-ion Thruster | -4/Factory | Hacked Exp. Sensor Array | -4/Factory | Hacked Exp. Terrain Scan Processor | -4/Factory | Hacked Lrg. Storage Unit | -4/Factory | Hacked Exp. Signal Interpreter | -4/Factory | Hacked Exp. Propulsion Shielding | -4/Factory | Hacked Exp. Utility Shielding | -4/Factory | Hacked Robot Schematics ------------------ None Fabricated ------------ Hacking Suite | x1 | -7/Factory System Backup Module | x2 | -7/Factory | Preloaded Exp. Sensor Array | x1 | -4/Factory Adv. Hacking Suite | x1 | -4/Factory Alien Tech Used ----------------- None Achievements -------------- None Challenges ------------ None Game ------ Seed MobileArmageddonRegulator Manual? 0 Play Time 02:09:22 Cumulative 93.0 hours Start 2021.06.07 @ 02:26:46 End 2021.06.07 @ 04:39:42 Sessions 1 Manual Loads 0 Difficulty Rogue Special Mode None Game No. 21 Rogue 5 Adventurer 16 Explorer 0 Win Type - Total 5 Types 4/0/0/1/0/0/0/0/0 Lore% 55 Gallery% 56 Achievement% 53 Wizard Run 0 Options --------- ASCII 0 Keyboard 0 Movement Arrows Keybinds 0 Fullscreen 1 Font 28/Dina Map View 72x54 Tactical HUD 1 Map Filters NONE Filters NONE Steam 1 RUN: e6e63825-6a3b-42fa-9186-7007a75f88ed